fUST/lending_fUST_20250715
["ID","MTS","AMOUNT","RATE_DAILY","PERIOD"]
[372219582,1752555040190,-460.0,0.00020821,3]
[372219583,1752555040200,-460.0,0.00020821,3]
[372219584,1752555040210,-460.0,0.00020821,3]
[372219585,1752555040220,-460.0,0.00020821,3]
[372219586,1752555040230,-518.82,0.00020821,3]
[372219587,1752555040240,-461.38,0.00020821,3]
[372219588,1752555040250,-460.0,0.00020821,3]
[372219589,1752555040260,-336.50172962,0.00020821,3]
[372219590,1752555040270,-460.0,0.00020821,3]
[372219591,1752555040280,-460.0,0.00020821,3]
[372219592,1752555040291,-460.0,0.00020821,3]
[372219593,1752555040300,-460.0,0.00020821,3]
[372219594,1752555040310,-460.0,0.00020821,3]
[372219595,1752555040320,-460.0,0.00020821,3]
[372219596,1752555040330,-460.0,0.00020821,3]
[372219597,1752555040343,-465.45235023,0.00020821,3]
[372219598,1752555040352,-802.02,0.00020821,3]
[372219599,1752555040362,-532.17,0.00020821,3]
[372219600,1752555040372,-460.0,0.00020821,3]
[372219601,1752555040383,-2142.07,0.00020821,3]
[372219602,1752555040392,-460.0,0.00020821,3]
[372219603,1752555040402,-460.0,0.00020821,3]
[372219604,1752555040412,-460.0,0.00020821,3]
[372219605,1752555040423,-460.0,0.00020821,3]
[372219606,1752555040432,-460.0,0.00020821,3]
[372219607,1752555040442,-460.0,0.00020821,3]
[372219608,1752555040451,-461.86655123,0.00020821,3]
[372219609,1752555040460,-460.0,0.00020821,3]
[372219610,1752555040470,-460.0,0.00020821,3]
[372219611,1752555040479,-460.0,0.00020821,3]
[372219612,1752555040489,-464.86458566,0.00020821,3]
[372219613,1752555040499,-460.0,0.00020821,3]
[372219614,1752555040509,-462.79523889,0.00020821,3]
[372219615,1752555040519,-460.0,0.00020821,3]
[372219616,1752555040529,-460.0,0.00020821,3]
[372219617,1752555040539,-473.5,0.00020821,3]
[372219618,1752555040548,-460.0,0.00020821,3]
[372219619,1752555040558,-466.77810299,0.00020821,3]
[372219620,1752555040568,-463.95238647,0.00020821,3]
[372219621,1752555040578,-460.0,0.00020821,3]
[372219622,1752555040587,-481.12,0.00020821,3]
[372219623,1752555040597,-460.0,0.00020821,3]
[372219624,1752555040607,-460.0,0.00020821,3]
[372219625,1752555040617,-463.18318805,0.00020821,3]
[372219626,1752555040627,-667.24,0.00020821,3]
[372219627,1752555040637,-462.62572066,0.00020821,3]
[372219628,1752555040647,-642.73,0.00020821,3]
[372219629,1752555040657,-460.0,0.00020821,3]
[372219630,1752555040666,-460.0,0.00020821,3]
[372219631,1752555040676,-1088.91,0.00020821,3]
[372219632,1752555040685,-460.0,0.00020821,3]
[372219633,1752555040695,-460.0,0.00020821,3]
[372219634,1752555040704,-460.0,0.00020821,3]
[372219635,1752555040715,-463.44203165,0.00020821,3]
[372219636,1752555040724,-508.15907012,0.00020821,3]
[372219637,1752555040734,-460.0,0.00020821,3]
[372219638,1752555040744,-460.0,0.00020821,3]
[372219639,1752555040754,-460.0,0.00020821,3]
[372219640,1752555040763,-470.19174005,0.00020821,3]
[372219642,1752555040772,-460.0,0.00020821,3]
[372219643,1752555040782,-460.0,0.00020821,3]
[372219646,1752555040791,-460.0,0.00020821,3]
[372219648,1752555040801,-460.0,0.00020821,3]
[372219650,1752555040811,-605.34,0.00020821,3]
[372219652,1752555040820,-460.0,0.00020821,3]
[372219654,1752555040829,-917.12,0.00020821,3]
[372219656,1752555040838,-460.0,0.00020821,3]
[372219658,1752555040848,-460.0,0.00020821,3]
[372219660,1752555040857,-460.0,0.00020821,3]
[372219662,1752555040869,-3078.1,0.00020821,3]
[372219663,1752555040878,-488.91,0.00020821,3]
[372219664,1752555040889,-460.0,0.00020821,3]
[372219665,1752555040898,-460.0,0.00020821,3]
[372219666,1752555040908,-460.0,0.00020821,3]
[372219667,1752555040917,-460.0,0.00020821,3]
[372219668,1752555040927,-460.0,0.00020821,3]
[372219669,1752555040936,-458.60006715,0.00020821,3]
[372219670,1752555040946,-460.0,0.00020821,3]
[372219671,1752555040955,-460.0,0.00020821,3]
[372219672,1752555040965,-460.0,0.00020821,3]
[372219673,1752555040975,-461.55101305,0.00020821,3]
[372219674,1752555040984,-460.0,0.00020821,3]
[372219675,1752555040993,-460.0,0.00020821,3]
[372219676,1752555041002,-460.0,0.00020821,3]
[372219677,1752555041011,-460.0,0.00020821,3]
[372219678,1752555041021,-460.0,0.00020821,3]
[372219679,1752555041030,-460.0,0.00020821,3]
[372219680,1752555041039,-198.9968175,0.00020821,3]
[372219681,1752555041318,-261.0031825,0.00020821,3]
[372219682,1752555041328,-174.50757034,0.00020821,3]
[372219683,1752555041343,-285.49242966,0.00020821,3]
[372219684,1752555041352,-71.50817236,0.00020821,3]
[372219685,1752555041365,-388.49182764,0.00020821,3]
[372219686,1752555041375,-347.85016438,0.00020821,3]
[372219687,1752555041385,-1333.22539098,0.00020821,3]
[372219688,1752555041398,-3804.01460902,0.00020821,3]
[372219689,1752555041408,-460.0,0.00020821,3]
[372219690,1752555041418,-973.85,0.00020821,3]
[372219691,1752555041427,-467.38602632,0.00020821,3]
[372219692,1752555041437,-562.29,0.00020821,3]
[372219694,1752555041446,-406.17097186,0.00020821,3]
[372219696,1752555041456,-460.0,0.00020821,3]
[372219698,1752555041465,-460.0,0.00020821,3]
[372219700,1752555041475,-212.14942934,0.00020821,3]
[372219702,1752555041484,-460.0,0.00020821,3]
[372219704,1752555041494,-460.0,0.00020821,3]
[372219706,1752555041503,-460.0,0.00020821,3]
[372219708,1752555041512,-461.18470123,0.00020821,3]
[372219710,1752555041522,-574.14,0.00020821,3]
[372219712,1752555041537,-1061.95,0.00020821,3]
[372219713,1752555041550,-462.5140917,0.00020821,3]
[372219715,1752555041560,-3923.86,0.00020821,3]
[372219718,1752555041569,-461.75750865,0.00020821,3]
[372219720,1752555041579,-863.54,0.00020821,3]
[372219721,1752555041588,-594.14514841,0.00020821,3]
[372219723,1752555041598,-460.0,0.00020821,3]
[372219724,1752555041610,-749.58100621,0.00020821,2]
[372219725,1752555041628,-259.74204433,0.00020823,2]
[372219726,1752555041638,-640.08,0.00020856,3]
[372219727,1752555041647,-158.07017526,0.00020873,2]
[372219729,1752555041657,-562.34792507,0.00020899,2]
[372219731,1752555041667,-7435.59614662,0.000209,4]
[372219733,1752555041676,-640.08,0.00020919,3]
[372219734,1752555041685,-640.08,0.00020919,3]
[372219735,1752555041695,-29948.68032465,0.0002092,2]
[372219736,1752555041705,-640.08,0.00020956,3]
[372219737,1752555041714,-640.08,0.00020956,3]
[372219738,1752555041724,-640.08,0.00020956,3]
[372219739,1752555041734,-460.0,0.00020957,3]
[372219740,1752555041743,-460.0,0.00020957,3]
[372219741,1752555041753,-462.19944637,0.00020957,3]
[372219742,1752555041763,-460.0,0.00020957,3]
[372219743,1752555041773,-271.55486385,0.00020957,3]
[372219744,1752555041782,-460.0,0.00020957,3]
[372219745,1752555041792,-362.77010875,0.00020957,3]
[372219746,1752555041802,-460.0,0.00020957,3]
[372219747,1752555041811,-460.0,0.00020957,3]
[372219748,1752555041821,-460.0,0.00020957,3]
[372219749,1752555041831,-460.0,0.00020957,3]
[372219750,1752555041840,-460.0,0.00020957,3]
[372219751,1752555041850,-460.0,0.00020957,3]
[372219752,1752555041860,-460.0,0.00020957,3]
[372219753,1752555041871,-460.0,0.00020957,3]
[372219754,1752555041881,-460.0,0.00020957,3]
[372219755,1752555041890,-460.0,0.00020957,3]
[372219756,1752555041901,-460.0,0.00020957,3]
[372219757,1752555041912,-460.0,0.00020957,3]
[372219758,1752555041922,-460.0,0.00020957,3]
[372219759,1752555041931,-462.69619532,0.00020957,3]
[372219760,1752555041941,-463.58508055,0.00020957,3]
[372219761,1752555041950,-460.0,0.00020957,3]
[372219762,1752555041959,-460.0,0.00020957,3]
[372219763,1752555041969,-460.0,0.00020957,3]
[372219764,1752555041980,-462.85474568,0.00020957,3]
[372219765,1752555041990,-460.0,0.00020957,3]
[372219766,1752555042000,-460.0,0.00020957,3]
[372219767,1752555042009,-460.0,0.00020957,3]
[372219768,1752555042019,-460.0,0.00020957,3]
[372219769,1752555042028,-460.0,0.00020957,3]
[372219770,1752555042037,-287.51024003,0.00020957,3]
[372219771,1752555042047,-460.0,0.00020957,3]
[372219772,1752555042057,-460.0,0.00020957,3]
[372219773,1752555042066,-460.0,0.00020957,3]
[372219774,1752555042076,-460.0,0.00020957,3]
[372219775,1752555042085,-460.0,0.00020957,3]
[372219776,1752555042095,-460.0,0.00020957,3]
[372219777,1752555042106,-460.0,0.00020957,3]
[372219778,1752555042116,-739.4,0.00020957,3]
[372219779,1752555042126,-465.70400981,0.00020957,3]
[372219780,1752555042136,-460.0,0.00020957,3]
[372219781,1752555042146,-460.0,0.00020957,3]
[372219782,1752555042157,-460.0,0.00020957,3]
[372219783,1752555042166,-460.0,0.00020957,3]
[372219784,1752555042177,-460.0,0.00020957,3]
[372219785,1752555042187,-460.0,0.00020957,3]
[372219786,1752555042196,-460.59593517,0.00020957,3]
[372219787,1752555042206,-460.0,0.00020957,3]
[372219788,1752555042216,-460.0,0.00020957,3]
[372219789,1752555042226,-460.0,0.00020957,3]
[372219790,1752555042235,-460.0,0.00020957,3]
[372219791,1752555042245,-460.0,0.00020957,3]
[372219792,1752555042255,-460.0,0.00020957,3]
[372219793,1752555042264,-460.0,0.00020957,3]
[372219794,1752555042274,-460.0,0.00020957,3]
[372219795,1752555042283,-460.0,0.00020957,3]
[372219796,1752555042293,-415.83,0.00020957,3]
[372219797,1752555042303,-460.0,0.00020957,3]
[372219798,1752555042312,-461.82584008,0.00020957,3]
[372219799,1752555042322,-460.0,0.00020957,3]
[372219800,1752555042332,-462.94249738,0.00020957,3]
[372219801,1752555042345,-261.52116688,0.00020957,3]
[372219802,1752555042355,-643.43,0.00020957,3]
[372219803,1752555042365,-460.0,0.00020957,3]
[372219804,1752555042375,-1492.12,0.00020957,3]
[372219805,1752555042385,-460.0,0.00020957,3]
[372219806,1752555042394,-460.0,0.00020957,3]
[372219807,1752555042405,-460.0,0.00020957,3]
[372219808,1752555042415,-460.0,0.00020957,3]
[372219809,1752555042424,-1772.41,0.00020957,3]
[372219810,1752555042434,-460.0,0.00020957,3]
[372219811,1752555042443,-460.0,0.00020957,3]
[372219812,1752555042452,-460.0,0.00020957,3]
[372219813,1752555042462,-460.0,0.00020957,3]
[372219814,1752555042471,-2396.13,0.00020957,3]
[372219815,1752555042481,-460.0,0.00020957,3]
[372219816,1752555042490,-464.38828836,0.00020957,3]
[372219817,1752555042499,-460.0,0.00020957,3]
[372219818,1752555042509,-1659.78,0.00020957,3]
[372219819,1752555042519,-1348.1,0.00020957,3]
[372219821,1752555042528,-1120.91,0.00020957,3]
[372219822,1752555042538,-151.526629,0.00020957,2]
[372219823,1752555042547,-641.93,0.00020957,3]
[372219824,1752555042557,-4046.12,0.00020957,3]
[372219825,1752555042566,-151.0,0.00020957,2]
[372219826,1752555042576,-2818.0,0.00020979,2]
[372219827,1752555042585,-259.74204433,0.00021064,2]
[372219828,1752555042595,-7435.59614635,0.00021072,4]
[372219829,1752555042604,-640.08,0.00021094,3]
[372219830,1752555042615,-640.08,0.00021094,3]
[372219831,1752555042624,-640.08,0.00021094,3]
[372219832,1752555042634,-640.08,0.00021094,3]
[372219833,1752555042643,-640.08,0.00021094,3]
[372219834,1752555042653,-640.19,0.00021094,3]
[372219835,1752555042663,-466.15544388,0.00021095,3]
[372219836,1752555042672,-460.0,0.00021095,3]
[372219837,1752555042682,-460.0,0.00021095,3]
[372219838,1752555042692,-460.0,0.00021095,3]
[372219839,1752555042703,-460.0,0.00021095,3]
[372219840,1752555042712,-462.99082905,0.00021095,3]
[372219841,1752555042722,-460.0,0.00021095,3]
[372219842,1752555042731,-466.08593492,0.00021095,3]
[372219843,1752555042740,-460.0,0.00021095,3]
[372219844,1752555042749,-460.0,0.00021095,3]
[372219845,1752555042759,-460.0,0.00021095,3]
[372219846,1752555042769,-460.0,0.00021095,3]
[372219847,1752555042778,-460.0,0.00021095,3]
[372219848,1752555042788,-460.0,0.00021095,3]
[372219849,1752555042797,-460.0,0.00021095,3]
[372219850,1752555042809,-642.85,0.00021095,3]
[372219851,1752555042818,-460.0,0.00021095,3]
[372219852,1752555042828,-460.0,0.00021095,3]
[372219853,1752555042837,-460.0,0.00021095,3]
[372219854,1752555042847,-450.35227123,0.00021095,3]
[372219855,1752555042856,-460.0,0.00021095,3]
[372219856,1752555042867,-463.43253429,0.00021095,3]
[372219857,1752555042876,-460.0,0.00021095,3]
[372219858,1752555042885,-463.79,0.00021095,3]
[372219859,1752555042896,-460.59,0.00021095,3]
[372219860,1752555042905,-460.0,0.00021095,3]
[372219861,1752555042915,-460.0,0.00021095,3]
[372219862,1752555042924,-460.0,0.00021095,3]
[372219863,1752555043019,-460.0,0.00021095,3]
[372219864,1752555043029,-460.0,0.00021095,3]
[372219866,1752555043038,-464.47282932,0.00021095,3]
[372219868,1752555043047,-460.0,0.00021095,3]
[372219870,1752555043056,-460.0,0.00021095,3]
[372219872,1752555043066,-460.0,0.00021095,3]
[372219874,1752555043076,-460.0,0.00021095,3]
[372219875,1752555043085,-4718.55,0.00021095,3]
[372219876,1752555043094,-610.27,0.00021095,3]
[372219877,1752555043103,-2259.06,0.00021095,3]
[372219878,1752555043115,-1219.81,0.00021095,3]
[372219879,1752555043125,-746.45,0.00021095,3]
[372219880,1752555043135,-460.0,0.00021095,3]
[372219881,1752555043145,-577.45,0.00021095,3]
[372219882,1752555043154,-533.07,0.00021095,3]
[372219883,1752555043164,-470.50296255,0.00021095,3]
[372219884,1752555043174,-769.52,0.00021095,3]
[372219885,1752555043183,-460.0,0.00021095,3]
[372219886,1752555043192,-3197.5,0.00021095,3]
[372219887,1752555043202,-468.50741069,0.00021095,3]
[372219888,1752555043212,-460.0,0.00021095,3]
[372219889,1752555043222,-460.0,0.00021095,3]
[372219890,1752555043231,-460.0,0.00021095,3]
[372219891,1752555043240,-464.32356804,0.00021095,3]
[372219892,1752555043249,-460.0,0.00021095,3]
[372219893,1752555043259,-518.82,0.00021095,3]
[372219894,1752555043268,-461.38,0.00021095,3]
[372219895,1752555043279,-460.0,0.00021095,3]
[372219896,1752555043289,-460.0,0.00021095,3]
[372219897,1752555043299,-460.0,0.00021095,3]
[372219898,1752555043309,-151.0,0.00021095,2]
[372219899,1752555043319,-802.02,0.00021095,3]
[372219900,1752555043329,-532.17,0.00021095,3]
[372219901,1752555043344,-460.0,0.00021095,3]
[372219902,1752555043355,-2142.07,0.00021095,3]
[372219903,1752555043366,-460.0,0.00021095,3]
[372219904,1752555043376,-460.0,0.00021095,3]
[372219905,1752555043387,-460.0,0.00021095,3]
[372219906,1752555043398,-460.0,0.00021095,3]
[372219907,1752555043407,-151.0,0.00021095,2]
[372219908,1752555043417,-467.10572727,0.00021095,3]
[372219909,1752555043427,-460.0,0.00021095,3]
[372219910,1752555043436,-460.0,0.00021095,3]
[372219911,1752555043446,-473.5,0.00021095,3]
[372219912,1752555043456,-460.0,0.00021095,3]
[372219913,1752555043465,-481.12,0.00021095,3]
[372219914,1752555043475,-510.95010467,0.00021095,3]
[372219915,1752555043484,-460.0,0.00021095,3]
[372219916,1752555043494,-667.24,0.00021095,3]
[372219917,1752555043503,-1088.91,0.00021095,3]
[372219918,1752555043514,-642.73,0.00021095,3]
[372219919,1752555043523,-462.06136971,0.00021095,3]
[372219920,1752555043533,-151.0,0.00021095,2]
[372219921,1752555043543,-460.0,0.00021095,3]
[372219922,1752555043552,-460.0,0.00021095,3]
[372219923,1752555043562,-404.4552598,0.00021095,3]
[372219924,1752555043571,-460.0,0.00021095,3]
[372219925,1752555043581,-460.0,0.00021095,3]
[372219926,1752555043591,-605.34,0.00021095,3]
[372219927,1752555043601,-917.12,0.00021095,3]
[372219928,1752555043610,-460.0,0.00021095,3]
[372219929,1752555043621,-464.14816262,0.00021095,3]
[372219930,1752555043631,-3078.1,0.00021095,3]
[372219931,1752555043640,-488.91,0.00021095,3]
[372219932,1752555043650,-460.0,0.00021095,3]
[372219933,1752555043659,-460.0,0.00021095,3]
[372219934,1752555043669,-460.0,0.00021095,3]
[372219935,1752555043678,-460.0,0.00021095,3]
[372219936,1752555043688,-460.0,0.00021095,3]
[372219937,1752555043697,-460.0,0.00021095,3]
[372219938,1752555043707,-460.0,0.00021095,3]
[372219939,1752555043716,-460.0,0.00021095,3]
[372219940,1752555043726,-460.0,0.00021095,3]
[372219941,1752555043735,-460.0,0.00021095,3]
[372219942,1752555043744,-449.19069784,0.00021095,3]
[372219943,1752555043754,-460.0,0.00021095,3]
[372219944,1752555043763,-409.2036442,0.00021095,3]
[372219945,1752555043773,-973.85,0.00021095,3]
[372219946,1752555043782,-5137.24,0.00021095,3]
[372219947,1752555043791,-562.29,0.00021095,3]
[372219948,1752555043801,-460.0,0.00021095,3]
[372219949,1752555043810,-460.0,0.00021095,3]
[372219950,1752555043820,-574.14,0.00021095,3]
[372219951,1752555043829,-1061.95,0.00021095,3]
[372219952,1752555043839,-3923.86,0.00021095,3]
[372219953,1752555043848,-863.54,0.00021095,3]
[372219954,1752555043858,-460.0,0.00021095,3]
[372219955,1752555043867,-160.0,0.000211,2]
[372219956,1752555043876,-151.0,0.00021119,2]
[372219957,1752555043886,-151.0,0.00021119,2]
[372219958,1752555043896,-151.0,0.00021119,2]
[372219959,1752555043905,-151.0,0.00021119,2]
[372219960,1752555043914,-162.909715,0.00021119,2]
[372219961,1752555043924,-162.909715,0.00021119,2]
[372219962,1752555043934,-151.0,0.00021119,2]
[372219963,1752555043943,-151.0,0.00021119,2]
[372219964,1752555043952,-151.0,0.00021119,2]
[372219965,1752555043961,-151.0,0.00021119,2]
[372219966,1752555043971,-152.694333,0.00021119,2]
[372219967,1752555043980,-300.0,0.00021119,2]
[372219968,1752555043989,-300.0,0.00021119,2]
[372219969,1752555043999,-704.23730345,0.00021119,2]
[372219970,1752555044008,-300.0,0.00021119,2]
[372219971,1752555044017,-300.0,0.00021119,2]
[372219972,1752555044027,-300.0,0.00021119,2]
[372219973,1752555044036,-300.0,0.00021119,2]
[372219974,1752555044045,-204.88863963,0.00021119,2]
[372219975,1752555044055,-25000.0,0.00021119,2]
[372219976,1752555044064,-24846.80909142,0.00021119,2]
[372219977,1752555044073,-18667.4829091,0.00021132,2]
[372219978,1752555044089,-533.92,0.00021132,2]
[372219979,1752555044101,-98160.7973816,0.00021132,2]
[372219980,1752555044110,-151.0,0.00021132,2]
[372219981,1752555044120,-151.0,0.00021132,2]
[372219982,1752555044130,-151.0,0.00021132,2]
[372219983,1752555044140,-151.0,0.00021132,2]
[372219984,1752555044150,-553.465009,0.00021132,2]
[372219985,1752555044160,-553.465009,0.00021132,2]
[372219986,1752555044169,-1023.824122,0.00021132,2]
[372219987,1752555044179,-1023.824122,0.00021132,2]
[372219988,1752555044188,-152.214901,0.00021132,2]
[372219989,1752555044198,-151.0,0.00021132,2]
[372219990,1752555044207,-164.105507,0.00021132,2]
[372219991,1752555044217,-151.0,0.00021132,2]
[372219992,1752555044227,-521.740457,0.00021132,2]
[372219993,1752555044236,-521.740457,0.00021132,2]
[372219994,1752555044246,-506.846544,0.00021132,2]
[372219995,1752555044256,-800.446242,0.00021132,2]
[372219996,1752555044266,-506.846544,0.00021132,2]
[372219997,1752555044275,-800.446242,0.00021132,2]
[372219998,1752555044284,-151.0,0.00021132,2]
[372219999,1752555044294,-151.0,0.00021132,2]
[372220000,1752555044303,-151.0,0.00021132,2]
[372220001,1752555044313,-169.95868,0.00021132,2]
[372220002,1752555044323,-151.0,0.00021132,2]
[372220003,1752555044334,-169.95868,0.00021132,2]
[372220004,1752555044346,-151.0,0.00021132,2]
[372220005,1752555044355,-163.380339,0.00021132,2]
[372220006,1752555044365,-151.0,0.00021132,2]
[372220007,1752555044374,-162.909715,0.00021132,2]
[372220009,1752555044385,-162.909715,0.00021132,2]
[372220010,1752555044394,-273.655283,0.00021132,2]
[372220011,1752555044403,-151.0,0.00021132,2]
[372220012,1752555044413,-2818.0,0.00021148,2]
[372220013,1752555044423,-500.0,0.00021173,2]
[372220014,1752555044432,-502.63678757,0.00021173,2]
[372220015,1752555044441,-160.04639916,0.00021173,2]
[372220016,1752555044450,-500.0,0.00021173,2]
[372220017,1752555044459,-500.0,0.00021173,2]
[372220018,1752555044469,-501.2927436,0.00021173,2]
[372220019,1752555044478,-501.4784424,0.00021173,2]
[372220020,1752555044488,-500.49213131,0.00021173,2]
[372220021,1752555044497,-500.0,0.00021173,2]
[372220022,1752555044507,-502.85524279,0.00021173,2]
[372220023,1752555044516,-500.0,0.00021173,2]
[372220024,1752555044525,-522.53502255,0.00021173,2]
[372220025,1752555044534,-2818.0,0.0002121,2]
[372220026,1752555044544,-2818.0,0.00021214,2]
[372220027,1752555044554,-1000.0,0.00021221,2]
[372220028,1752555044563,-460.0,0.00021231,3]
[372220029,1752555044574,-460.0,0.00021231,3]
[372220030,1752555044583,-460.0,0.00021231,3]
[372220031,1752555044594,-460.0,0.00021231,3]
[372220032,1752555044603,-460.0,0.00021231,3]
[372220033,1752555044614,-460.0,0.00021231,3]
[372220034,1752555044624,-460.0,0.00021231,3]
[372220035,1752555044634,-460.0,0.00021231,3]
[372220036,1752555044644,-460.0,0.00021231,3]
[372220037,1752555044654,-460.0,0.00021231,3]
[372220038,1752555044663,-460.0,0.00021231,3]
[372220039,1752555044675,-463.11174211,0.00021231,3]
[372220040,1752555044685,-460.0,0.00021231,3]
[372220041,1752555044773,-460.0,0.00021231,3]
[372220042,1752555044784,-460.0,0.00021231,3]
[372220043,1752555044793,-460.0,0.00021231,3]
[372220044,1752555044803,-739.4,0.00021231,3]
[372220045,1752555044812,-460.0,0.00021231,3]
[372220046,1752555044821,-462.57664889,0.00021231,3]
[372220047,1752555044831,-460.0,0.00021231,3]
[372220048,1752555044840,-471.93943244,0.00021231,3]
[372220049,1752555044849,-460.0,0.00021231,3]
[372220050,1752555044858,-460.0,0.00021231,3]
[372220051,1752555044868,-309.16279678,0.00021231,3]
[372220052,1752555044878,-460.0,0.00021231,3]
[372220053,1752555044887,-460.0,0.00021231,3]
[372220054,1752555044897,-464.15773791,0.00021231,3]
[372220055,1752555044907,-460.0,0.00021231,3]
[372220056,1752555044917,-460.0,0.00021231,3]
[372220057,1752555044927,-460.0,0.00021231,3]
[372220058,1752555044936,-460.0,0.00021231,3]
[372220059,1752555044945,-643.43,0.00021231,3]
[372220060,1752555044955,-460.0,0.00021231,3]
[372220061,1752555044965,-1492.12,0.00021231,3]
[372220062,1752555044975,-460.0,0.00021231,3]
[372220063,1752555044984,-260.17,0.00021231,3]
[372220064,1752555044993,-460.0,0.00021231,3]
[372220065,1752555045003,-460.0,0.00021231,3]
[372220066,1752555045013,-1772.41,0.00021231,3]
[372220067,1752555045023,-460.0,0.00021231,3]
[372220068,1752555045032,-460.0,0.00021231,3]
[372220070,1752555045041,-460.0,0.00021231,3]
[372220072,1752555045051,-2396.13,0.00021231,3]
[372220074,1752555045060,-460.0,0.00021231,3]
[372220076,1752555045070,-460.0,0.00021231,3]
[372220078,1752555045080,-1659.78,0.00021231,3]
[372220079,1752555045089,-1348.1,0.00021231,3]
[372220080,1752555045099,-1120.91,0.00021231,3]
[372220081,1752555045108,-641.93,0.00021231,3]
[372220082,1752555045118,-4046.12,0.00021231,3]
[372220083,1752555045128,-7435.59614635,0.00021245,4]
[372220084,1752555045138,-418.678113,0.00021248,2]
[372220085,1752555045148,-2818.0,0.00021294,2]
[372220086,1752555045158,-259.74204433,0.00021304,2]
[372220087,1752555045167,-2818.0,0.00021348,2]
[372220088,1752555045177,-500.0,0.00021352,2]
[372220089,1752555045186,-2818.0,0.0002136,2]
[372220090,1752555045196,-2818.0,0.00021364,2]
[372220091,1752555045206,-476.76671964,0.00021369,3]
[372220092,1752555045215,-460.0,0.00021369,3]
[372220093,1752555045225,-464.32616043,0.00021369,3]
[372220094,1752555045235,-460.0,0.00021369,3]
[372220095,1752555045245,-460.0,0.00021369,3]
[372220096,1752555045254,-460.0,0.00021369,3]
[372220097,1752555045264,-460.0,0.00021369,3]
[372220098,1752555045273,-460.0,0.00021369,3]
[372220099,1752555045283,-460.0,0.00021369,3]
[372220100,1752555045292,-465.0746113,0.00021369,3]
[372220101,1752555045302,-642.85,0.00021369,3]
[372220102,1752555045318,-460.0,0.00021369,3]
[372220103,1752555045337,-460.0,0.00021369,3]
[372220104,1752555045350,-472.28404962,0.00021369,3]
[372220105,1752555045360,-460.0,0.00021369,3]
[372220106,1752555045369,-463.79,0.00021369,3]
[372220107,1752555045379,-469.65621088,0.00021369,3]
[372220108,1752555045390,-460.59,0.00021369,3]
[372220109,1752555045399,-460.0,0.00021369,3]
[372220110,1752555045409,-474.21850378,0.00021369,3]
[372220111,1752555045420,-460.0,0.00021369,3]
[372220112,1752555045429,-460.0,0.00021369,3]
[372220113,1752555045439,-155.243515,0.00021369,2]
[372220114,1752555045448,-460.0,0.00021369,3]
[372220115,1752555045458,-4718.55,0.00021369,3]
[372220116,1752555045467,-610.27,0.00021369,3]
[372220117,1752555045477,-151.0,0.00021369,2]
[372220118,1752555045486,-2259.06,0.00021369,3]
[372220119,1752555045496,-1219.81,0.00021369,3]
[372220120,1752555045506,-746.45,0.00021369,3]
[372220121,1752555045516,-581.48997077,0.00021369,3]
[372220123,1752555045536,-577.45,0.00021369,3]